fUSD/lending_fUSD_20240329
["ID","MTS","AMOUNT","RATE_DAILY","PERIOD"]
[320994083,1711732273741,-643.87,0.00053698,120]
[320994084,1711732273751,-1537.3,0.00053698,120]
[320994085,1711732273762,-500.0,0.00053698,120]
[320994086,1711732273771,-1064.6,0.00053698,120]
[320994087,1711732273781,-500.0,0.00053698,120]
[320994088,1711732273790,-532.63,0.00053698,120]
[320994089,1711732273799,-500.0,0.00053698,120]
[320994090,1711732273808,-1623.67,0.00053698,120]
[320994091,1711732273818,-694.49,0.00053698,120]
[320994092,1711732273828,-862.3,0.00053698,120]
[320994093,1711732273838,-3565.13,0.00053698,120]
[320994094,1711732273847,-500.0,0.00053698,60]
[320994095,1711732273856,-2312.51,0.00053698,120]
[320994096,1711732273869,-1378.2,0.00053698,120]
[320994097,1711732273878,-2825.19,0.00053698,120]
[320994098,1711732273887,-1908.96,0.00053698,120]
[320994099,1711732273896,-3067.75,0.00053698,120]
[320994100,1711732273906,-1505.23,0.00053698,120]
[320994101,1711732273915,-500.0,0.00053698,120]
[320994102,1711732273925,-693.2,0.00053698,120]
[320994103,1711732273935,-618.84,0.00053698,120]
[320994104,1711732273944,-500.0,0.00053698,120]
[320994105,1711732273953,-500.0,0.00053698,120]
[320994106,1711732273963,-500.0,0.00053698,120]
[320994107,1711732273972,-2231.03,0.00053698,120]
[320994108,1711732273982,-500.0,0.00053698,120]
[320994109,1711732273991,-7315.32,0.00053698,120]
[320994110,1711732274000,-1373.64,0.00053698,120]
[320994111,1711732274012,-3551.47,0.00053698,120]
[320994112,1711732274021,-2890.11,0.00053698,120]
[320994113,1711732274030,-239.69106678,0.00053698,120]
[320994114,1711732274039,-3514.04,0.00053698,120]
[320994115,1711732274049,-3001.64,0.00053698,120]
[320994116,1711732274058,-2751.01,0.00053698,120]
[320994117,1711732274067,-500.0,0.00053698,120]
[320994118,1711732274077,-9275.15,0.00053698,120]
[320994119,1711732274087,-3751.45,0.00053698,120]
[320994120,1711732274097,-797.83,0.00053698,120]
[320994121,1711732274106,-706.51,0.00053698,120]
[320994122,1711732274116,-1203.12,0.00053698,120]
[320994123,1711732274125,-2915.8,0.00053698,120]
[320994124,1711732274134,-11829.29,0.00053698,120]
[320994125,1711732274143,-702.44,0.00053698,120]
[320994126,1711732274152,-1475.36,0.00053698,120]
[320994127,1711732274162,-338.77,0.00053698,120]
[320994128,1711732274172,-500.0,0.00053698,120]
[320994129,1711732274181,-4876.82,0.00053698,120]
[320994130,1711732274190,-725.78,0.00053698,120]
[320994131,1711732274200,-1899.07,0.00053698,120]
[320994132,1711732274208,-4287.28,0.00053698,120]
[320994133,1711732274217,-651.91,0.00053698,120]
[320994134,1711732274226,-500.0,0.00053698,120]
[320994135,1711732274236,-500.0,0.00053698,120]
[320994136,1711732274245,-500.0,0.00053698,120]
[320994137,1711732274256,-500.0,0.00053698,120]
[320994138,1711732274266,-3462.31,0.00053698,120]
[320994139,1711732274275,-500.0,0.00053698,120]
[320994140,1711732274285,-500.0,0.00053698,120]
[320994141,1711732274294,-230.16952209,0.00053698,120]
[320994142,1711732274303,-531.84,0.00053698,120]
[320994143,1711732274313,-970.04,0.00053698,120]
[320994144,1711732274322,-500.0,0.00053698,120]
[320994145,1711732274332,-503.26,0.00053698,120]
[320994146,1711732274341,-546.78,0.00053698,120]
[320994147,1711732274351,-2146.07,0.00053698,120]
[320994148,1711732274360,-2298.97,0.00053698,120]
[320994149,1711732274370,-978.57,0.00053698,120]
[320994150,1711732274380,-3430.95,0.00053698,120]
[320994151,1711732274390,-257.88626351,0.00053698,120]
[320994152,1711732274399,-1165.91,0.00053698,120]
[320994153,1711732274408,-500.0,0.00053698,120]
[320994154,1711732274418,-4577.78,0.00053698,21]
[320994155,1711732274427,-500.0,0.00053698,2]
[320994156,1711732274437,-656.94,0.00053698,120]
[320994157,1711732274447,-150.0,0.00053717,7]
[320994158,1711732274456,-1000.0,0.00053726,120]
[320994159,1711732274466,-386.92448372,0.0005375,30]
[320994160,1711732274476,-1000.0,0.00053773,120]
[320994161,1711732274486,-310.13458776,0.000538,120]
[320994162,1711732274495,-697.59,0.00053803,30]
[320994163,1711732274506,-1000.0,0.00053819,120]
[320994164,1711732274515,-1000.0,0.00053866,120]
[320994165,1711732274526,-346.58173857,0.00053872,14]
[320994166,1711732274535,-23977.19299553,0.000539,120]
[320994167,1711732274545,-159.01068689,0.000539,98]
[320994168,1711732274554,-1300.0,0.000539,19]
[320994169,1711732274563,-1000.0,0.00053912,120]
[320994170,1711732274572,-502.0,0.00053918,120]
[320994171,1711732274581,-639.0,0.00053918,120]
[320994172,1711732274591,-181.91,0.00053944,2]
[320994173,1711732274601,-1000.0,0.00053959,120]
[320994174,1711732274610,-631.95226,0.0005397,68]
[320994175,1711732274620,-500.0,0.00053972,120]
[320994176,1711732274630,-500.0,0.00053972,120]
[320994177,1711732274639,-500.0,0.00053972,120]
[320994178,1711732274649,-500.0,0.00053972,120]
[320994179,1711732274658,-500.0,0.00053972,120]
[320994180,1711732274668,-151.0,0.00053972,120]
[320994181,1711732274677,-500.0,0.00053972,120]
[320994182,1711732274686,-452.58159999,0.00053972,120]
[320994183,1711732274696,-500.0,0.00053972,120]
[320994184,1711732274706,-500.0,0.00053972,120]
[320994185,1711732274715,-500.0,0.00053972,120]
[320994186,1711732274725,-500.0,0.00053972,120]
[320994187,1711732274734,-500.0,0.00053972,120]
[320994188,1711732274744,-529.46,0.00053972,120]
[320994189,1711732274753,-500.0,0.00053972,120]
[320994190,1711732274764,-500.0,0.00053972,120]
[320994191,1711732274773,-500.0,0.00053972,120]
[320994192,1711732274782,-500.0,0.00053972,120]
[320994193,1711732274792,-500.0,0.00053972,120]
[320994194,1711732274802,-154.957495,0.00053972,120]
[320994195,1711732274811,-500.0,0.00053972,120]
[320994196,1711732274822,-500.0,0.00053972,120]
[320994197,1711732274831,-500.0,0.00053972,120]
[320994198,1711732274841,-500.0,0.00053972,120]
[320994199,1711732274850,-500.0,0.00053972,120]
[320994200,1711732274861,-557.74,0.00053972,120]
[320994201,1711732274871,-500.0,0.00053972,120]
[320994202,1711732274880,-500.0,0.00053972,120]
[320994203,1711732274890,-500.0,0.00053972,120]
[320994204,1711732274899,-151.0,0.00053972,120]
[320994205,1711732274908,-500.0,0.00053972,120]
[320994206,1711732274917,-151.0,0.00053972,120]
[320994207,1711732274927,-500.0,0.00053972,120]
[320994208,1711732274936,-151.0,0.00053972,120]
[320994209,1711732274947,-671.55,0.00053972,120]
[320994210,1711732274956,-500.0,0.00053972,120]
[320994211,1711732274965,-500.0,0.00053972,120]
[320994212,1711732274974,-500.0,0.00053972,120]
[320994213,1711732274983,-997.84,0.00053972,120]
[320994214,1711732274991,-500.0,0.00053972,120]
[320994215,1711732275001,-500.0,0.00053972,120]
[320994216,1711732275010,-533.61,0.00053972,120]
[320994217,1711732275019,-500.0,0.00053972,120]
[320994218,1711732275028,-500.0,0.00053972,120]
[320994219,1711732275038,-500.0,0.00053972,120]
[320994220,1711732275047,-500.0,0.00053972,120]
[320994221,1711732275057,-500.0,0.00053972,120]
[320994222,1711732275066,-277.42,0.00053972,120]
[320994223,1711732275075,-500.0,0.00053972,120]
[320994224,1711732275084,-500.0,0.00053972,120]
[320994225,1711732275093,-500.0,0.00053972,120]
[320994226,1711732275102,-665.65,0.00053972,120]
[320994227,1711732275111,-500.0,0.00053972,120]
[320994228,1711732275120,-500.0,0.00053972,120]
[320994229,1711732275129,-500.0,0.00053972,120]
[320994230,1711732275139,-546.22,0.00053972,120]
[320994231,1711732275148,-500.0,0.00053972,120]
[320994232,1711732275157,-500.0,0.00053972,120]
[320994233,1711732275166,-507.49,0.00053972,120]
[320994234,1711732275176,-500.0,0.00053972,120]
[320994235,1711732275186,-534.0,0.00053972,120]
[320994236,1711732275195,-500.0,0.00053972,120]
[320994237,1711732275205,-500.0,0.00053972,120]
[320994238,1711732275214,-500.0,0.00053972,120]
[320994239,1711732275223,-368.27857259,0.00053972,35]
[320994240,1711732275233,-500.0,0.00053972,120]
[320994241,1711732275242,-185.53650916,0.00053972,120]
[320994242,1711732275251,-500.0,0.00053972,120]
[320994243,1711732275261,-500.0,0.00053972,120]
[320994244,1711732275269,-500.0,0.00053972,120]
[320994245,1711732275278,-500.0,0.00053972,120]
[320994246,1711732275287,-500.0,0.00053972,120]
[320994247,1711732275296,-500.0,0.00053972,120]
[320994248,1711732275305,-395.26179204,0.00053972,120]
[320994249,1711732275314,-500.0,0.00053972,120]
[320994250,1711732275323,-500.0,0.00053972,120]
[320994251,1711732275332,-500.0,0.00053972,120]
[320994252,1711732275341,-500.0,0.00053972,120]
[320994253,1711732275349,-500.0,0.00053972,120]
[320994254,1711732275358,-500.0,0.00053972,120]
[320994255,1711732275368,-500.0,0.00053972,120]
[320994256,1711732275376,-520.26,0.00053972,120]
[320994257,1711732275385,-1906.05,0.00053972,120]
[320994258,1711732275394,-500.0,0.00053972,120]
[320994259,1711732275403,-500.0,0.00053972,120]
[320994260,1711732275412,-500.0,0.00053972,120]
[320994261,1711732275421,-500.0,0.00053972,120]
[320994262,1711732275430,-500.0,0.00053972,120]
[320994263,1711732275439,-500.0,0.00053972,120]
[320994264,1711732275448,-500.0,0.00053972,120]
[320994265,1711732275457,-500.0,0.00053972,120]
[320994266,1711732275465,-184.87,0.00053972,120]
[320994267,1711732275475,-500.0,0.00053972,2]
[320994268,1711732275484,-500.0,0.00053972,120]
[320994269,1711732275493,-264.79991036,0.00053972,2]
[320994270,1711732275502,-500.0,0.00053972,120]
[320994271,1711732275513,-500.0,0.00053972,120]
[320994272,1711732275522,-500.0,0.00053972,120]
[320994273,1711732275531,-500.0,0.00053972,120]
[320994274,1711732275539,-500.0,0.00053972,120]
[320994275,1711732275548,-684.29,0.00053972,120]
[320994276,1711732275557,-500.0,0.00053972,120]
[320994277,1711732275566,-500.0,0.00053972,120]
[320994278,1711732275575,-500.0,0.00053972,120]
[320994279,1711732275584,-539.83,0.00053972,120]
[320994280,1711732275594,-532.08907949,0.00053972,120]
[320994281,1711732275604,-500.0,0.00053972,120]
[320994282,1711732275613,-500.0,0.00053972,120]
[320994283,1711732275623,-500.0,0.00053972,120]
[320994284,1711732275632,-500.0,0.00053972,120]
[320994285,1711732275641,-500.0,0.00053972,120]
[320994286,1711732275651,-1706.14,0.00053972,120]
[320994287,1711732275660,-959.73,0.00053972,120]
[320994288,1711732275680,-500.0,0.00053972,120]
[320994289,1711732275689,-500.0,0.00053972,120]
[320994290,1711732275699,-7887.7,0.00053972,120]
[320994291,1711732275708,-540.13,0.00053972,120]
[320994292,1711732275718,-500.0,0.00053972,120]
[320994293,1711732275727,-500.0,0.00053972,120]
[320994294,1711732275737,-1600.31,0.00053972,120]
[320994295,1711732275747,-868.17,0.00053972,120]
[320994296,1711732275756,-500.0,0.00053972,120]
[320994297,1711732275765,-583.92,0.00053972,120]
[320994298,1711732275775,-500.0,0.00053972,120]
[320994299,1711732275784,-500.0,0.00053972,120]
[320994300,1711732275794,-500.0,0.00053972,120]
[320994301,1711732275803,-500.0,0.00053972,120]
[320994302,1711732275813,-500.0,0.00053972,120]
[320994303,1711732275822,-500.0,0.00053972,120]
[320994304,1711732275831,-666.09,0.00053972,120]
[320994305,1711732275840,-500.0,0.00053972,120]
[320994306,1711732275850,-501.42,0.00053972,120]
[320994307,1711732275860,-2866.09,0.00053972,120]
[320994308,1711732275871,-500.0,0.00053972,120]
[320994309,1711732275881,-695.15,0.00053972,120]
[320994310,1711732275891,-4227.5,0.00053972,120]
[320994311,1711732275901,-639.06,0.00053972,120]
[320994312,1711732275910,-5650.1,0.00053972,120]
[320994313,1711732275921,-16788.45,0.00053972,120]
[320994314,1711732275930,-500.0,0.00053972,120]
[320994315,1711732275939,-500.0,0.00053972,120]
[320994316,1711732275948,-500.0,0.00053972,120]
[320994317,1711732275958,-3741.11,0.00053972,120]
[320994318,1711732275968,-4021.4,0.00053972,120]
[320994319,1711732275978,-2018.41,0.00053972,120]
[320994320,1711732275987,-1018.15,0.00053972,120]
[320994321,1711732275996,-500.0,0.00053972,120]
[320994322,1711732276007,-2719.17,0.00053972,120]
[320994323,1711732276016,-500.0,0.00053972,120]
[320994324,1711732276025,-500.0,0.00053972,120]
[320994325,1711732276034,-2275.1,0.00053972,120]
[320994326,1711732276043,-1055.56,0.00053972,120]
[320994327,1711732276052,-500.0,0.00053972,120]
[320994328,1711732276061,-3101.43,0.00053972,120]
[320994329,1711732276070,-500.0,0.00053972,120]
[320994330,1711732276079,-500.0,0.00053972,120]
[320994331,1711732276088,-3715.44,0.00053972,120]
[320994332,1711732276097,-500.0,0.00053972,120]
[320994333,1711732276106,-500.0,0.00053972,120]
[320994334,1711732276115,-500.0,0.00053972,120]
[320994335,1711732276124,-4247.9,0.00053972,120]
[320994336,1711732276133,-892.02,0.00053972,120]
[320994337,1711732276142,-1042.94,0.00053972,120]
[320994338,1711732276151,-500.0,0.00053972,120]
[320994339,1711732276160,-500.0,0.00053972,120]
[320994340,1711732276169,-1509.93,0.00053972,120]
[320994341,1711732276178,-830.5,0.00053972,120]
[320994342,1711732276187,-500.0,0.00053972,120]
[320994343,1711732276196,-1724.86,0.00053972,120]
[320994344,1711732276205,-613.02,0.00053972,120]
[320994345,1711732276214,-500.0,0.00053972,120]
[320994346,1711732276222,-905.36,0.00053972,120]
[320994347,1711732276232,-500.0,0.00053972,120]
[320994348,1711732276241,-623.53,0.00053972,120]
[320994349,1711732276249,-802.8,0.00053972,120]
[320994350,1711732276259,-543.31,0.00053972,120]
[320994351,1711732276268,-500.0,0.00053972,120]
[320994352,1711732276277,-1090.75,0.00053972,120]
[320994353,1711732276286,-746.52,0.00053972,120]
[320994354,1711732276296,-826.13,0.00053972,120]
[320994355,1711732276305,-500.0,0.00053972,120]
[320994356,1711732276314,-500.0,0.00053972,120]
[320994357,1711732276323,-567.02,0.00053972,120]
[320994358,1711732276333,-727.16,0.00053972,120]
[320994359,1711732276342,-524.42,0.00053972,120]
[320994360,1711732276351,-3533.95,0.00053972,120]
[320994361,1711732276360,-678.08,0.00053972,120]
[320994362,1711732276369,-1640.68,0.00053972,120]
[320994363,1711732276378,-599.54,0.00053972,120]
[320994364,1711732276388,-823.88,0.00053972,120]
[320994365,1711732276397,-746.65,0.00053972,120]
[320994366,1711732276408,-1247.6,0.00053972,120]
[320994367,1711732276417,-500.0,0.00053972,80]
[320994368,1711732276426,-2016.02,0.00053972,120]
[320994369,1711732276436,-1049.64,0.00053972,120]
[320994370,1711732276445,-842.24,0.00053972,120]
[320994371,1711732276454,-2897.64,0.00053972,120]
[320994372,1711732276463,-637.97,0.00053972,120]
[320994373,1711732276473,-662.85,0.00053972,120]
[320994374,1711732276482,-500.0,0.00053972,120]
[320994375,1711732276492,-515.79,0.00053972,120]
[320994376,1711732276501,-1329.88,0.00053972,120]
[320994377,1711732276511,-3024.4,0.00053972,120]
[320994378,1711732276521,-897.89,0.00053972,120]
[320994379,1711732276530,-1703.04,0.00053972,120]
[320994380,1711732276539,-500.0,0.00053972,120]
[320994381,1711732276548,-2522.14,0.00053972,120]
[320994382,1711732276557,-500.0,0.00053972,120]
[320994383,1711732276566,-5409.47,0.00053972,120]
[320994384,1711732276574,-643.87,0.00053972,120]
[320994385,1711732276583,-1537.3,0.00053972,120]
[320994386,1711732276592,-500.0,0.00053972,120]
[320994387,1711732276601,-1064.6,0.00053972,120]
[320994388,1711732276611,-500.0,0.00053972,120]
[320994389,1711732276620,-532.63,0.00053972,120]
[320994390,1711732276773,-500.0,0.00053972,120]
[320994391,1711732276782,-1623.67,0.00053972,120]
[320994392,1711732276791,-694.49,0.00053972,120]
[320994393,1711732276800,-862.3,0.00053972,120]
[320994394,1711732276810,-3565.13,0.00053972,120]
[320994395,1711732276819,-500.0,0.00053972,60]
[320994396,1711732276828,-2312.51,0.00053972,120]
[320994397,1711732276838,-1378.2,0.00053972,120]
[320994398,1711732276847,-2825.19,0.00053972,120]
[320994399,1711732276857,-1908.96,0.00053972,120]
[320994400,1711732276868,-3067.75,0.00053972,120]
[320994401,1711732276878,-1505.23,0.00053972,120]
[320994402,1711732276887,-500.0,0.00053972,120]
[320994403,1711732276896,-693.2,0.00053972,120]
[320994404,1711732276906,-618.84,0.00053972,120]
[320994405,1711732276915,-500.0,0.00053972,120]
[320994406,1711732276924,-500.0,0.00053972,120]
[320994407,1711732276934,-500.0,0.00053972,120]
[320994408,1711732276943,-2231.03,0.00053972,120]
[320994409,1711732276954,-500.0,0.00053972,120]
[320994410,1711732276963,-7315.32,0.00053972,120]
[320994411,1711732276974,-1373.64,0.00053972,120]
[320994412,1711732276983,-3551.47,0.00053972,120]
[320994413,1711732276993,-2890.11,0.00053972,120]
[320994414,1711732277002,-3514.04,0.00053972,120]
[320994415,1711732277011,-3001.64,0.00053972,120]
[320994416,1711732277021,-2751.01,0.00053972,120]
[320994417,1711732277030,-500.0,0.00053972,120]
[320994418,1711732277040,-9275.15,0.00053972,120]
[320994419,1711732277049,-3751.45,0.00053972,120]
[320994420,1711732277058,-797.83,0.00053972,120]
[320994421,1711732277067,-706.51,0.00053972,120]
[320994422,1711732277076,-1203.12,0.00053972,120]
[320994423,1711732277085,-2915.8,0.00053972,120]
[320994424,1711732277095,-11829.29,0.00053972,120]
[320994425,1711732277104,-702.44,0.00053972,120]
[320994426,1711732277113,-1475.36,0.00053972,120]
[320994427,1711732277123,-500.0,0.00053972,120]
[320994428,1711732277132,-4876.82,0.00053972,120]
[320994429,1711732277141,-725.78,0.00053972,120]
[320994430,1711732277151,-1899.07,0.00053972,120]
[320994431,1711732277159,-4287.28,0.00053972,120]
[320994432,1711732277169,-651.91,0.00053972,120]
[320994433,1711732277178,-500.0,0.00053972,120]
[320994434,1711732277188,-500.0,0.00053972,120]
[320994435,1711732277197,-500.0,0.00053972,120]
[320994436,1711732277206,-500.0,0.00053972,120]
[320994437,1711732277216,-3462.31,0.00053972,120]
[320994438,1711732277225,-500.0,0.00053972,120]
[320994439,1711732277234,-500.0,0.00053972,120]
[320994440,1711732277243,-531.84,0.00053972,120]
[320994441,1711732277252,-970.04,0.00053972,120]
[320994442,1711732277263,-500.0,0.00053972,120]
[320994443,1711732277271,-503.26,0.00053972,120]
[320994444,1711732277280,-546.78,0.00053972,120]
[320994445,1711732277290,-2146.07,0.00053972,120]
[320994446,1711732277298,-2298.97,0.00053972,120]
[320994447,1711732277307,-978.57,0.00053972,120]
[320994448,1711732277316,-3430.95,0.00053972,120]
[320994449,1711732277326,-1165.91,0.00053972,120]
[320994450,1711732277335,-500.0,0.00053972,120]
[320994451,1711732277343,-4577.78,0.00053972,21]
[320994452,1711732277352,-500.0,0.00053972,2]
[320994453,1711732277362,-656.94,0.00053972,120]
[320994454,1711732277371,-325.0,0.0005398,15]
[320994455,1711732277380,-262.0,0.0005398,15]
[320994456,1711732277389,-325.0,0.0005399,15]
[320994457,1711732277398,-262.0,0.0005399,15]
[320994458,1711732277407,-5000.0,0.00054,120]
[320994459,1711732277416,-118762.22905254,0.00054,2]
[320994460,1711732277425,-153.923474,0.00054,120]
[320994461,1711732277434,-267.193341,0.00054,120]
[320994462,1711732277443,-192.85,0.00054,14]
[320994463,1711732277452,-151.0,0.00054,120]
[320994464,1711732277461,-40473.1956063,0.00054,2]
[320994465,1711732277774,-32165.35303461,0.00054,2]
[320994466,1711732277783,-151.0,0.00054,120]
[320994467,1711732277793,-480.598738,0.00054,120]
[320994468,1711732277802,-151.0,0.00054,120]
[320994469,1711732277811,-480.598738,0.00054,120]
[320994470,1711732277821,-151.0,0.00054,120]
[320994471,1711732277830,-151.0,0.00054,120]
[320994472,1711732277839,-151.0,0.00054,120]
[320994473,1711732277849,-151.0,0.00054,120]
[320994474,1711732277859,-151.0,0.00054,120]
[320994475,1711732277870,-151.0,0.00054,120]
[320994476,1711732277880,-151.0,0.00054,120]
[320994477,1711732277890,-151.0,0.00054,120]
[320994478,1711732277899,-151.0,0.00054,120]
[320994479,1711732277908,-151.0,0.00054,30]
[320994480,1711732277918,-3106.193186,0.00054,120]
[320994481,1711732277927,-359.84839,0.00054,120]
[320994482,1711732277936,-3106.193186,0.00054,120]
[320994483,1711732277945,-359.84839,0.00054,120]
[320994484,1711732277954,-218.146791,0.00054,120]
[320994485,1711732277964,-151.0,0.00054,120]
[320994486,1711732277974,-218.146791,0.00054,120]
[320994487,1711732277989,-151.0,0.00054,120]
[320994488,1711732278007,-156.927235,0.00054,30]
[320994489,1711732278020,-386.171921,0.00054,120]
[320994490,1711732278035,-156.927235,0.00054,30]
[320994491,1711732278045,-386.171921,0.00054,120]
[320994492,1711732278054,-151.0,0.00054,14]
[320994493,1711732278063,-151.0,0.00054,120]
[320994494,1711732278072,-1461.478802,0.00054004,120]
[320994495,1711732278081,-1000.0,0.00054005,120]
[320994496,1711732278090,-152.30659038,0.00054013,60]
[320994497,1711732278099,-180.8,0.00054027,120]
[320994498,1711732278108,-291.88732483,0.00054028,30]
[320994499,1711732278117,-800.37433344,0.00054028,30]
[320994500,1711732278126,-1394.15700575,0.00054047,7]
[320994501,1711732278135,-1000.0,0.00054052,120]
[320994502,1711732278144,-346.42,0.00054082,30]
[320994503,1711732278153,-1000.0,0.00054098,120]
[320994504,1711732278162,-23201.178449,0.000541,2]
[320994505,1711732278171,-153.30888088,0.00054114,60]
[320994506,1711732278180,-1000.0,0.00054144,120]
[320994507,1711732278189,-155.12100314,0.00054152,60]
[320994508,1711732278198,-153.30888088,0.00054152,60]
[320994509,1711732278207,-166.33000666,0.00054165,60]
[320994510,1711732278216,-1000.0,0.00054191,120]
[320994511,1711732278226,-1500.0,0.00054205,7]
[320994512,1711732278235,-1500.0,0.00054236,7]
[320994513,1711732278244,-1000.0,0.00054237,120]
[320994514,1711732278254,-500.0,0.00054246,120]
[320994515,1711732278265,-500.0,0.00054246,120]
[320994516,1711732278274,-500.0,0.00054246,120]
[320994517,1711732278283,-500.0,0.00054246,120]
[320994518,1711732278292,-500.0,0.00054246,120]
[320994519,1711732278301,-500.0,0.00054246,120]
[320994520,1711732278310,-500.0,0.00054246,120]
[320994521,1711732278319,-500.0,0.00054246,120]
[320994522,1711732278328,-644.24754542,0.00054246,120]
[320994523,1711732278337,-500.0,0.00054246,120]
[320994524,1711732278346,-500.0,0.00054246,120]
[320994525,1711732278355,-500.0,0.00054246,120]
[320994526,1711732278364,-556.41699378,0.00054246,120]
[320994527,1711732278373,-500.0,0.00054246,120]
[320994528,1711732278381,-500.0,0.00054246,120]
[320994529,1711732278391,-500.0,0.00054246,120]
[320994530,1711732278400,-500.0,0.00054246,120]
[320994531,1711732278410,-500.0,0.00054246,120]
[320994532,1711732278419,-180.10613291,0.00054246,120]
[320994533,1711732278428,-314.16676659,0.00054246,120]
[320994534,1711732278437,-500.0,0.00054246,120]
[320994535,1711732278446,-557.74,0.00054246,120]
[320994536,1711732278455,-500.0,0.00054246,120]
[320994537,1711732278464,-500.0,0.00054246,120]
[320994538,1711732278473,-500.0,0.00054246,120]
[320994539,1711732278482,-500.0,0.00054246,120]
[320994540,1711732278491,-500.0,0.00054246,120]
[320994541,1711732278500,-671.55,0.00054246,120]
[320994542,1711732278510,-500.0,0.00054246,120]
[320994543,1711732278519,-500.0,0.00054246,120]
[320994544,1711732278527,-500.0,0.00054246,120]
[320994545,1711732278536,-997.84,0.00054246,120]
[320994546,1711732278545,-500.0,0.00054246,120]
[320994547,1711732278554,-622.63,0.00054246,120]
[320994548,1711732278562,-533.61,0.00054246,120]
[320994549,1711732278571,-500.0,0.00054246,120]
[320994550,1711732278579,-500.0,0.00054246,120]
[320994551,1711732278588,-500.0,0.00054246,120]
[320994552,1711732278597,-500.0,0.00054246,120]
[320994553,1711732278606,-264.21657379,0.00054246,120]
[320994554,1711732278615,-500.0,0.00054246,120]
[320994555,1711732278624,-500.0,0.00054246,120]
[320994556,1711732278633,-358.93289188,0.00054246,120]
[320994557,1711732278642,-665.65,0.00054246,120]
[320994558,1711732278651,-500.0,0.00054246,120]
[320994559,1711732278661,-500.0,0.00054246,120]
[320994560,1711732278670,-500.0,0.00054246,120]
[320994561,1711732278679,-546.22,0.00054246,120]
[320994562,1711732278688,-500.0,0.00054246,120]
[320994563,1711732278698,-500.0,0.00054246,120]
[320994564,1711732278707,-507.49,0.00054246,120]
[320994565,1711732278717,-500.0,0.00054246,120]
[320994566,1711732278726,-534.0,0.00054246,120]
[320994567,1711732278735,-500.0,0.00054246,120]
[320994568,1711732278744,-500.0,0.00054246,120]
[320994569,1711732278753,-500.0,0.00054246,120]
[320994570,1711732278763,-500.0,0.00054246,120]
[320994571,1711732278772,-500.0,0.00054246,120]
[320994572,1711732278783,-500.0,0.00054246,120]
[320994573,1711732278793,-500.0,0.00054246,120]
[320994574,1711732278802,-567.37323418,0.00054246,120]
[320994575,1711732278811,-500.0,0.00054246,120]
[320994576,1711732278821,-500.0,0.00054246,120]
[320994577,1711732278831,-500.0,0.00054246,120]
[320994578,1711732278840,-500.0,0.00054246,120]
[320994579,1711732278850,-500.0,0.00054246,120]
[320994580,1711732278859,-500.0,0.00054246,120]
[320994581,1711732278871,-500.0,0.00054246,120]
[320994582,1711732278881,-500.0,0.00054246,120]